fUSD/lending_fUSD_20260301
["ID","MTS","AMOUNT","RATE_DAILY","PERIOD"]
[406957882,1772353840433,-500.0,0.00012622,2]
[406957884,1772353840442,-500.0,0.00012622,2]
[406957886,1772353840451,-500.0,0.00012622,2]
[406957888,1772353840460,-150.0,0.00012622,2]
[406957890,1772353840469,-150.0,0.00012622,2]
[406957892,1772353840479,-150.0,0.00012622,2]
[406957893,1772353840488,-500.0,0.00012622,2]
[406957895,1772353840497,-150.0,0.00012622,2]
[406957897,1772353840506,-168.48002279,0.00012622,2]
[406957899,1772353840516,-156.61610602,0.00012622,2]
[406957901,1772353840525,-175.03472584,0.00012622,2]
[406957903,1772353840535,-150.0,0.00012622,2]
[406957905,1772353840545,-150.0,0.00012622,2]
[406957907,1772353840555,-500.0,0.00012622,2]
[406957909,1772353840565,-154.39853483,0.00012622,2]
[406957911,1772353840575,-687.14,0.00012628,2]
[406957913,1772353840584,-2809.53,0.0001263,2]
[406957916,1772353840594,-151.0,0.00012633,2]
[406957918,1772353840603,-63400.51136045,0.00012636,2]
[406957919,1772353840613,-153.06287491,0.00012677,2]
[406957922,1772353840622,-153.8363013,0.00012677,2]
[406957923,1772353840631,-150.0,0.00012677,2]
[406957926,1772353840641,-150.0,0.00012677,2]
[406957927,1772353840650,-153.99807212,0.00012677,2]
[406957930,1772353840660,-153.66172219,0.00012677,2]
[406957932,1772353840669,-162.2713494,0.00012677,2]
[406957934,1772353840678,-150.0,0.00012677,2]
[406957936,1772353840688,-500.0,0.00012677,2]
[406957938,1772353840697,-500.0,0.00012677,2]
[406957940,1772353840706,-500.0,0.00012677,2]
[406957941,1772353840715,-150.0,0.00012677,2]
[406957943,1772353840724,-500.0,0.00012677,2]
[406957945,1772353840733,-151.55486475,0.00012677,2]
[406957948,1772353840743,-150.0,0.00012677,2]
[406957950,1772353840752,-150.0,0.00012677,2]
[406957952,1772353840762,-500.0,0.00012677,2]
[406957954,1772353840771,-848.13,0.00012691,2]
[406957956,1772353840781,-500.0,0.000127,2]
[406957958,1772353840790,-500.0,0.000127,2]
[406957960,1772353840799,-500.0,0.000127,2]
[406957962,1772353840809,-500.18195565,0.000127,2]
[406957964,1772353840818,-500.0,0.000127,2]
[406957966,1772353840827,-502.18781882,0.000127,2]
[406957968,1772353840837,-500.0,0.000127,2]
[406957970,1772353840846,-500.0,0.000127,2]
[406957972,1772353840856,-500.0,0.000127,2]
[406957974,1772353840867,-1000.0,0.00012731,2]
[406957976,1772353840876,-150.0,0.00012732,2]
[406957978,1772353840886,-150.0,0.00012732,2]
[406957980,1772353840895,-150.0,0.00012732,2]
[406957982,1772353840904,-500.0,0.00012732,2]
[406957984,1772353840913,-500.0,0.00012732,2]
[406957986,1772353840922,-500.0,0.00012732,2]
[406957988,1772353840931,-165.94619115,0.00012732,2]
[406957990,1772353840940,-500.0,0.00012732,2]
[406957992,1772353840949,-150.0,0.00012732,2]
[406957994,1772353840958,-150.0,0.00012732,2]
[406957996,1772353840967,-500.0,0.00012732,2]
[406957998,1772353840978,-254.40853203,0.00012786,2]
[406958000,1772353840987,-167.19273963,0.00012786,2]
[406958002,1772353840997,-150.0,0.00012786,2]
[406958004,1772353841007,-500.0,0.00012786,2]
[406958006,1772353841019,-500.0,0.00012786,2]
[406958008,1772353841029,-500.0,0.00012786,2]
[406958010,1772353841039,-500.0,0.00012786,2]
[406958012,1772353841048,-150.0,0.00012786,2]
[406958014,1772353841059,-230.5137839,0.00012786,2]
[406958016,1772353841068,-500.0,0.00012786,2]
[406958018,1772353841077,-1000.0,0.000128,2]
[406958020,1772353841089,-158.0,0.00012824,3]
[406958022,1772353841099,-150.0,0.00012841,2]
[406958024,1772353841109,-500.0,0.00012841,2]
[406958026,1772353841120,-500.0,0.00012841,2]
[406958028,1772353841129,-150.62440252,0.00012841,2]
[406958030,1772353841139,-500.0,0.00012841,2]
[406958032,1772353841148,-150.0,0.00012841,2]
[406958033,1772353841158,-500.0,0.00012841,2]
[406958034,1772353841166,-150.0,0.00012857,2]
[406958035,1772353841176,-155.70401297,0.00012896,2]
[406958036,1772353841185,-162.71600095,0.00012896,2]
[406958037,1772353841194,-303.81881414,0.00012896,2]
[406958038,1772353841203,-500.0,0.00012896,2]
[406958039,1772353841212,-179.47115924,0.00012896,2]
[406958040,1772353841222,-500.0,0.00012896,2]
[406958042,1772353841231,-500.0,0.00012923,2]
[406958043,1772353841240,-500.0,0.00012923,2]
[406958044,1772353841249,-500.0,0.00012923,2]
[406958045,1772353841258,-500.0,0.00012923,2]
[406958046,1772353841267,-500.0,0.00012923,2]
[406958047,1772353841276,-500.0,0.00012923,2]
[406958048,1772353841285,-500.0,0.00012923,2]
[406958049,1772353841294,-500.0,0.00012923,2]
[406958050,1772353841303,-500.0,0.00012923,2]
[406958051,1772353841311,-500.0,0.00012923,2]
[406958052,1772353841321,-227.03852537,0.00012923,2]
[406958053,1772353841331,-500.0,0.00012923,2]
[406958054,1772353841341,-500.0,0.00012923,2]
[406958055,1772353841350,-500.0,0.00012923,2]
[406958056,1772353841359,-500.0,0.00012923,2]
[406958057,1772353841368,-500.0,0.00012923,2]
[406958058,1772353841377,-500.0,0.00012923,2]
[406958059,1772353841386,-500.0,0.00012951,2]
[406958060,1772353841395,-500.0,0.00012951,2]
[406958061,1772353841404,-848.13,0.00012965,2]
[406958062,1772353841413,-500.0,0.00013006,2]
[406958063,1772353841422,-500.0,0.00013006,2]
[406958064,1772353841432,-207.02550713,0.00013026,2]
[406958065,1772353841442,-500.0,0.0001306,2]
[406958066,1772353841452,-500.0,0.0001306,2]
[406958067,1772353841461,-2390.33585773,0.00013071,2]
[406958068,1772353841471,-32891.4421,0.00013087,2]
[406958069,1772353841481,-187.9739,0.00013087,2]
[406958070,1772353841491,-500.0,0.00013115,2]
[406958071,1772353841501,-411.20780857,0.00013115,2]
[406958072,1772353841511,-2937.26966657,0.00013145,2]
[406958073,1772353841521,-164.66750726,0.0001317,2]
[406958074,1772353841531,-4609.0,0.00013179,2]
[406958075,1772353841541,-1252.0,0.00013179,2]
[406958076,1772353841551,-500.0,0.00013179,2]
[406958077,1772353841562,-500.0,0.00013179,2]
[406958078,1772353841572,-500.0,0.00013179,2]
[406958079,1772353841582,-500.0,0.00013179,2]
[406958080,1772353841591,-500.0,0.00013179,2]
[406958081,1772353841601,-500.0,0.00013179,2]
[406958082,1772353841611,-151.0,0.00013179,2]
[406958083,1772353841620,-151.0,0.00013179,2]
[406958084,1772353841630,-151.0,0.00013179,2]
[406958085,1772353841639,-151.0,0.00013179,2]
[406958086,1772353841648,-151.0,0.00013179,2]
[406958087,1772353841657,-151.0,0.00013179,2]
[406958088,1772353841667,-151.0,0.00013179,2]
[406958089,1772353841676,-151.0,0.00013179,2]
[406958090,1772353841685,-151.0,0.00013179,2]
[406958091,1772353841694,-151.0,0.00013179,2]
[406958092,1772353841704,-151.0,0.00013179,2]
[406958093,1772353841714,-151.0,0.00013179,2]
[406958094,1772353841724,-151.0,0.00013179,2]
[406958095,1772353841733,-91619.09,0.00013187,2]
[406958096,1772353841743,-826.94141727,0.00013192,2]
[406958097,1772353841752,-687.14,0.00013202,2]
[406958098,1772353841761,-848.13,0.00013239,2]
[406958099,1772353841770,-1000.0,0.00013248,2]
[406958100,1772353841779,-1000.0,0.00013248,2]
[406958101,1772353841788,-1000.0,0.00013248,2]
[406958102,1772353841903,-1000.0,0.00013248,2]
[406958103,1772353841913,-415.85133049,0.00013248,2]
[406958104,1772353841923,-850.06934174,0.00013248,2]
[406958105,1772353841934,-1000.0,0.00013248,2]
[406958106,1772353841943,-208.87,0.000133,2]
[406958107,1772353841952,-500.0,0.00013383,2]
[406958108,1772353841962,-500.0,0.00013383,2]
[406958109,1772353841970,-430.77146385,0.00013383,2]
[406958110,1772353841979,-223.88324267,0.00013383,2]
[406958111,1772353841988,-224.91172577,0.00013383,2]
[406958112,1772353841998,-500.0,0.00013383,2]
[406958113,1772353842007,-500.0,0.00013383,2]
[406958114,1772353842020,-500.0,0.00013383,2]
[406958115,1772353842029,-500.0,0.00013383,2]
[406958116,1772353842039,-500.0,0.00013383,2]
[406958117,1772353842048,-500.0,0.00013383,2]
[406958118,1772353842058,-63400.51136045,0.00013384,2]
[406958119,1772353842068,-207.77,0.00013442,2]
[406958120,1772353842077,-31045.58911555,0.00013451,2]
[406958121,1772353842087,-848.13,0.00013513,2]
[406958122,1772353842097,-500.0,0.00013698,2]
[406958123,1772353842106,-500.0,0.00013698,2]
[406958124,1772353842118,-500.0,0.00013698,2]
[406958125,1772353842129,-395.13385762,0.00013698,2]
[406958126,1772353842138,-500.0,0.00013698,2]
[406958127,1772353842147,-500.0,0.00013698,2]
[406958128,1772353842156,-231.36,0.00013698,2]
[406958129,1772353842165,-500.0,0.00013698,2]
[406958130,1772353842174,-500.0,0.00013698,2]
[406958131,1772353842183,-500.0,0.00013698,2]
[406958132,1772353842192,-500.0,0.00013698,2]
[406958133,1772353842201,-500.0,0.00013698,2]
[406958134,1772353842210,-500.0,0.00013698,2]
[406958135,1772353842220,-500.0,0.00013698,2]
[406958136,1772353842229,-500.0,0.00013698,2]
[406958137,1772353842239,-500.0,0.00013698,2]
[406958138,1772353842248,-500.0,0.00013698,2]
[406958139,1772353842257,-500.0,0.00013698,2]
[406958140,1772353842270,-1205.7,0.00013699,2]
[406958141,1772353842279,-687.14,0.00013776,2]
[406958142,1772353842288,-848.15421015,0.00013787,2]
[406958143,1772353842297,-1500.0,0.00013796,2]
[406958144,1772353842305,-1500.0,0.00013796,2]
[406958145,1772353842315,-504.04615842,0.00013796,2]
[406958146,1772353842324,-253.71937149,0.00013832,2]
[406958147,1772353842334,-150.0,0.00013832,2]
[406958148,1772353842343,-500.0,0.00013832,2]
[406958149,1772353842352,-214.56343636,0.00013832,2]
[406958150,1772353842362,-500.0,0.00013832,2]
[406958151,1772353842371,-161.1779493,0.00013832,2]
[406958152,1772353842382,-150.0,0.00013832,2]
[406958153,1772353842392,-500.0,0.00013832,2]
[406958154,1772353842403,-150.0,0.00013887,2]
[406958155,1772353842413,-553.10721264,0.00013887,2]
[406958156,1772353842423,-500.0,0.00013887,2]
[406958157,1772353842432,-150.0,0.00013887,2]
[406958158,1772353842442,-500.0,0.00013887,2]
[406958159,1772353842452,-400.0,0.00013942,2]
[406958160,1772353842461,-150.0,0.00013942,2]
[406958161,1772353842470,-500.0,0.00013942,2]
[406958162,1772353842479,-1000.0,0.00014004,2]
[406958163,1772353842488,-2390.33585773,0.00014037,2]
[406958164,1772353842497,-521.0,0.0001411,2]
[406958165,1772353842507,-63400.51136045,0.00014132,2]
[406958166,1772353842517,-31045.58911555,0.00014188,2]
[406958167,1772353842526,-484.4008852,0.00014253,2]
[406958168,1772353842535,-484.40088519,0.00014253,2]
[406958169,1772353842544,-1204.90619438,0.00014344,2]
[406958170,1772353842553,-687.14,0.0001435,2]
[406958171,1772353842563,-150.0,0.00014477,2]
[406958172,1772353842572,-1010.0,0.00014497,2]
[406958174,1772353842582,-660.0,0.00014502,2]
[406958175,1772353842591,-1175.01,0.00014504,2]
[406958176,1772353842600,-9999.99,0.00014504,2]
[406958178,1772353842609,-299.99,0.00014504,2]
[406958179,1772353842618,-150.99,0.00014504,2]
[406958180,1772353842627,-1642.29,0.00014504,2]
[406958181,1772353842636,-9999.99,0.00014504,2]
[406958182,1772353842646,-9999.99,0.00014504,2]
[406958183,1772353842656,-150.99,0.00014504,2]
[406958184,1772353842666,-9999.99,0.00014504,2]
[406958185,1772353842675,-4999.99,0.00014504,2]
[406958186,1772353842684,-999.99,0.00014504,2]
[406958187,1772353842693,-311.85,0.00014504,2]
[406958188,1772353842702,-499.99,0.00014504,2]
[406958189,1772353842712,-179686.35,0.00014504,2]
[406958190,1772353842722,-9999.99,0.00014504,2]
[406958191,1772353842731,-2108.69,0.00014504,2]
[406958192,1772353842740,-188.12,0.00014541,2]
[406958193,1772353842749,-192.580252,0.00014592,7]
[406958194,1772353842759,-290.12369262,0.00014773,2]
[406958195,1772353842768,-500.0,0.00014773,2]
[406958196,1772353842777,-500.0,0.00014773,2]
[406958197,1772353842787,-500.0,0.00014773,2]
[406958198,1772353842796,-500.0,0.00014773,2]
[406958199,1772353842805,-310.22607572,0.00014773,2]
[406958200,1772353842814,-500.0,0.00014773,2]
[406958201,1772353842824,-500.0,0.00014773,2]
[406958202,1772353842833,-500.0,0.00014773,2]
[406958204,1772353842842,-500.0,0.00014773,2]
[406958205,1772353842851,-500.0,0.00014773,2]
[406958206,1772353842860,-500.0,0.00014773,2]
[406958207,1772353842869,-500.0,0.00014773,2]
[406958208,1772353842878,-500.0,0.00014773,2]
[406958209,1772353842887,-160.14509426,0.00014773,2]
[406958211,1772353842897,-500.0,0.00014773,2]
[406958213,1772353842908,-500.68771731,0.00014773,2]
[406958215,1772353842917,-500.0,0.00014773,2]
[406958216,1772353842928,-500.0,0.00014773,2]
[406958217,1772353842937,-500.0,0.00014773,2]
[406958218,1772353842946,-500.0,0.00014773,2]
[406958219,1772353842956,-277.29366352,0.00014773,2]
[406958220,1772353842967,-500.0,0.00014773,2]
[406958221,1772353842976,-500.0,0.00014773,2]
[406958222,1772353842985,-500.0,0.00014773,2]
[406958223,1772353842994,-500.0,0.00014773,2]
[406958224,1772353843003,-500.0,0.00014773,2]
[406958225,1772353843015,-500.0,0.00014773,2]
[406958226,1772353843025,-504.49415487,0.00014773,2]
[406958227,1772353843034,-507.52455527,0.00014773,2]
[406958228,1772353843043,-500.0,0.00014773,2]
[406958229,1772353843052,-500.0,0.00014773,2]
[406958230,1772353843061,-500.0,0.00014773,2]
[406958231,1772353843070,-500.0,0.00014773,2]
[406958232,1772353843081,-333.1526586,0.00014844,2]
[406958233,1772353843090,-63400.51136045,0.00014881,2]
[406958234,1772353843099,-4700.0,0.000149,5]
[406958235,1772353843108,-687.14,0.00014924,2]
[406958236,1772353843118,-31045.58911555,0.00014925,2]
[406958237,1772353843128,-2390.33585773,0.00015003,2]
[406958238,1772353843138,-500.0,0.00015079,2]
[406958239,1772353843147,-500.0,0.00015079,2]
[406958240,1772353843157,-500.0,0.00015079,2]
[406958241,1772353843166,-500.0,0.00015079,2]
[406958242,1772353843175,-500.0,0.00015079,2]
[406958243,1772353843184,-500.0,0.00015079,2]
[406958244,1772353843195,-500.0,0.00015079,2]
[406958245,1772353843204,-500.0,0.00015079,2]
[406958246,1772353843214,-153.04785948,0.00015207,2]
[406958247,1772353843225,-1000.0,0.00015277,2]
[406958248,1772353843236,-151.0,0.00015318,2]
[406958249,1772353843247,-712.37829793,0.00015321,2]
[406958250,1772353843256,-1000.0,0.00015321,2]
[406958251,1772353843266,-484.71516567,0.00015321,2]
[406958252,1772353843275,-1000.0,0.00015321,2]
[406958253,1772353843284,-1000.0,0.00015321,2]
[406958254,1772353843293,-500.0,0.00015321,2]
[406958255,1772353843302,-1000.0,0.00015321,2]
[406958256,1772353843311,-1000.0,0.00015321,2]
[406958257,1772353843321,-526.23779749,0.00015321,2]
[406958258,1772353843331,-1000.0,0.00015321,2]
[406958259,1772353843340,-500.0,0.00015321,2]
[406958260,1772353843349,-154.27,0.0001538,2]
[406958261,1772353843358,-687.14,0.00015497,2]
[406958262,1772353843367,-154.27,0.00015575,2]
[406958263,1772353843377,-308.53,0.00015594,2]
[406958264,1772353843386,-63400.51136045,0.00015629,2]
[406958265,1772353843395,-31045.58911555,0.00015662,2]
[406958266,1772353843404,-1000.0,0.00015776,2]
[406958267,1772353843413,-1000.0,0.00015868,2]
[406958268,1772353843423,-535.1535458,0.00015868,2]
[406958269,1772353843434,-1500.0,0.00015868,2]
[406958270,1772353843444,-1500.0,0.00015868,2]
[406958271,1772353843453,-1278.0,0.00015945,2]
[406958272,1772353843463,-1211.0,0.00015945,2]
[406958273,1772353843472,-921.0,0.00015945,2]
[406958274,1772353843481,-3500.0,0.00015945,2]
[406958275,1772353843490,-1340.0,0.00015945,2]
[406958276,1772353843499,-2390.33585773,0.00015969,2]
[406958277,1772353843509,-188.12,0.0001611,2]
[406958278,1772353843518,-9999.99,0.00016116,2]
[406958279,1772353843528,-30432.9188513,0.0001612,2]
[406958280,1772353843661,-500.0,0.00011869,2]
[406958281,1772353843670,-500.0,0.00012143,2]
[406958282,1772353843679,-712.07,0.000133,2]
[406958283,1772353843688,-317.7742334,0.00014844,2]
[406958284,1772353843697,-2457.0,0.00015945,2]
[406958285,1772353843707,-19567.0811487,0.0001612,2]
[406958286,1772353843716,-5028.47844898,0.00016189,2]
[406958287,1772353843725,-63400.51136045,0.00016377,2]
[406958288,1772353843735,-31045.58911555,0.00016399,2]
[406958289,1772353843743,-160.0,0.000164,2]
[406958290,1772353843752,-1552.59653977,0.00016416,2]
[406958291,1772353843762,-2000.0,0.00016416,2]
[406958292,1772353843771,-1632.0,0.00016438,2]
[406958293,1772353843784,-150.0,0.00016438,2]
[406958294,1772353843793,-1999.0,0.00016438,2]
[406958295,1772353843804,-2000.0,0.00016438,2]
[406958296,1772353843824,-1632.0,0.00016493,2]
[406958297,1772353843834,-300.0,0.00016543,2]
[406958298,1772353843843,-1632.0,0.00016548,2]
[406958299,1772353843853,-1632.0,0.00016602,2]
[406958300,1772353843862,-1632.0,0.00016657,2]
[406958301,1772353843871,-1632.0,0.00016712,2]
[406958302,1772353843880,-166.4,0.00016712,2]
[406958303,1772353843889,-153.04785948,0.00016728,2]
[406958304,1772353843898,-1632.0,0.00016767,2]
[406958305,1772353843908,-1632.0,0.00016822,2]
[406958306,1772353843917,-1632.0,0.00016876,2]
[406958307,1772353843926,-11082.53798,0.00016914,7]
[406958308,1772353843938,-1746.73583,0.00016914,7]
[406958309,1772353843949,-1632.0,0.00016931,2]
[406958310,1772353843959,-2390.33585773,0.00016934,2]
[406958311,1772353843969,-150.0,0.00016938,14]
[406958312,1772353843980,-2500.0,0.00016964,2]
[406958313,1772353843989,-1632.0,0.00016986,2]
[406958314,1772353843998,-202.55697905,0.00016986,2]
[406958315,1772353844010,-174.09452548,0.00017,7]
[406958316,1772353844032,-2000.0,0.0001701,2]
[406958317,1772353844054,-220.0,0.00017014,2]
[406958318,1772353844071,-160.0,0.0001704,2]
[406958319,1772353844080,-1639.0,0.0001704,2]
[406958320,1772353844090,-160.0,0.0001704,2]
[406958321,1772353844102,-1632.0,0.00017041,2]
[406958322,1772353844112,-1632.0,0.00017096,2]
[406958323,1772353844122,-500.0,0.00017099,2]
[406958324,1772353844131,-500.0,0.00017099,2]
[406958325,1772353844140,-500.0,0.00017099,2]
[406958326,1772353844251,-151.0,0.00017099,2]
[406958327,1772353844260,-500.0,0.00017099,2]
[406958328,1772353844270,-500.0,0.00017099,2]
[406958329,1772353844291,-500.0,0.00017099,2]
[406958330,1772353844308,-500.0,0.00017099,2]
[406958331,1772353844319,-500.0,0.00017099,2]
[406958332,1772353844329,-500.0,0.00017099,2]
[406958333,1772353844338,-500.0,0.00017099,2]
[406958334,1772353844347,-500.0,0.00017099,2]
[406958335,1772353844356,-500.0,0.00017099,2]
[406958336,1772353844365,-500.0,0.00017099,2]
[406958337,1772353844375,-644.79446246,0.00017099,2]
[406958338,1772353844385,-158.373817,0.000171,2]
[406958339,1772353844394,-171.2232,0.0001711,2]
[406958340,1772353844403,-171.2232,0.0001711,2]
[406958341,1772353844412,-171.2232,0.0001711,2]
[406958342,1772353844420,-171.2232,0.0001711,2]
[406958343,1772353844430,-171.2232,0.0001711,2]
[406958344,1772353844439,-171.2232,0.0001711,2]
[406958345,1772353844448,-63400.51136045,0.00017125,2]
[406958346,1772353844457,-31045.58911555,0.00017136,2]
[406958347,1772353844466,-1632.0,0.0001715,2]
[406958348,1772353844475,-151.0,0.00017154,2]
[406958349,1772353844485,-668.65185757,0.00017154,2]
[406958350,1772353844494,-2000.0,0.000172,2]
[406958351,1772353844504,-1632.0,0.00017205,2]
[406958352,1772353844513,-151.0,0.00017209,2]
[406958353,1772353844522,-693.3919763,0.00017209,2]
[406958354,1772353844531,-300.0,0.00017221,2]
[406958355,1772353844540,-1632.0,0.0001726,2]
[406958356,1772353844549,-151.0,0.00017264,2]
[406958357,1772353844558,-719.04747942,0.00017264,2]
[406958358,1772353844568,-1632.0,0.00017315,2]
[406958359,1772353844577,-151.0,0.00017319,2]
[406958360,1772353844586,-745.65223616,0.00017319,2]
[406958361,1772353844595,-168.0,0.0001735,2]
[406958362,1772353844604,-845.0,0.0001736,2]
[406958363,1772353844613,-858.0,0.0001736,2]
[406958364,1772353844623,-208.96854569,0.00017369,2]
[406958365,1772353844632,-1632.0,0.0001737,2]
[406958366,1772353844641,-773.2413689,0.00017374,2]
[406958367,1772353844651,-900.0,0.000174,6]
[406958368,1772353844660,-1632.0,0.00017424,2]
[406958369,1772353844669,-801.85129955,0.00017429,2]
[406958370,1772353844678,-1632.0,0.00017479,2]
[406958371,1772353844688,-831.51979763,0.00017484,2]
[406958372,1772353844697,-900.0,0.000175,6]
[406958373,1772353844706,-351.0,0.00017503,2]
[406958374,1772353844715,-979.36214283,0.00017512,2]
[406958375,1772353844724,-1305.33998525,0.00017533,2]
[406958376,1772353844733,-1632.0,0.00017534,2]
[406958377,1772353844742,-862.28603014,0.00017539,2]
[406958378,1772353844752,-1632.0,0.00017589,2]
[406958379,1772353844761,-894.19061326,0.00017594,2]
[406958380,1772353844770,-2000.0,0.000176,2]
[406958381,1772353844780,-900.0,0.000176,6]
[406958382,1772353844790,-1019.05221681,0.0001764,2]
[406958383,1772353844799,-1632.0,0.00017643,2]
[406958384,1772353844808,-927.27566595,0.00017649,2]
[406958385,1772353844817,-2847.0,0.0001768,2]
[406958386,1772353844827,-845.0,0.0001768,2]
[406958387,1772353844837,-1650.62186763,0.00017698,2]
[406958388,1772353844846,-900.0,0.000177,6]
[406958389,1772353844855,-961.58486559,0.00017704,2]
[406958390,1772353844865,-168.0,0.0001772,2]
[406958391,1772353844874,-417.0,0.00017734,2]
[406958392,1772353844883,-168.0,0.00017737,2]
[406958393,1772353844895,-188.12,0.0001775,2]
[406958394,1772353844904,-997.16350561,0.00017759,2]
[406958395,1772353844913,-2000.0,0.000178,2]
[406958396,1772353844923,-1300.0,0.000178,6]
[406958397,1772353844932,-5000.0,0.00017808,2]
[406958398,1772353844942,-500.0,0.00017808,2]
[406958399,1772353844951,-630.18278028,0.00017808,2]
[406958400,1772353844961,-630.18278028,0.00017808,2]
[406958401,1772353844970,-630.18278028,0.00017808,2]
[406958402,1772353844979,-630.18278028,0.00017808,2]
[406958403,1772353844989,-630.18278028,0.00017808,2]
[406958404,1772353844998,-630.18278028,0.00017808,2]
[406958405,1772353845008,-630.18278028,0.00017808,2]
[406958406,1772353845031,-630.18278028,0.00017808,2]
[406958407,1772353845042,-630.18278028,0.00017808,2]
[406958408,1772353845053,-630.18278028,0.00017808,2]
[406958409,1772353845063,-630.18278028,0.00017808,2]
[406958410,1772353845072,-630.18278028,0.00017808,2]
[406958411,1772353845082,-800.0,0.00017808,2]
[406958412,1772353845091,-177.35349,0.0001782,2]
[406958413,1772353845101,-177.35349,0.0001782,2]
[406958414,1772353845110,-188.11431885,0.00017821,2]
[406958415,1772353845119,-1691.0,0.00017845,2]
[406958416,1772353845128,-176.2097608,0.00017846,3]
[406958417,1772353845140,-25000.0,0.00017856,3]
[406958418,1772353845155,-500.0,0.00017863,2]
[406958419,1772353845175,-25000.0,0.00017865,3]
[406958420,1772353845191,-1124.71635469,0.0001787,2]
[406958421,1772353845204,-31045.58911555,0.00017873,2]
[406958422,1772353845216,-63400.51136045,0.00017873,2]
[406958423,1772353845225,-25000.0,0.00017874,3]
[406958424,1772353845235,-158.0,0.00017879,3]
[406958425,1772353845244,-151.0,0.00017882,2]
[406958426,1772353845253,-151.0,0.00017882,2]
[406958427,1772353845262,-157.447486,0.00017882,2]
[406958428,1772353845272,-151.0,0.00017882,2]
[406958429,1772353845281,-25000.0,0.00017882,3]
[406958430,1772353845290,-25000.0,0.00017891,3]
[406958431,1772353845300,-500.0,0.00017899,2]
[406958432,1772353845309,-500.0,0.00017899,2]
[406958433,1772353845320,-500.0,0.00017899,2]
[406958434,1772353845329,-500.0,0.00017899,2]
[406958435,1772353845338,-500.0,0.00017899,2]
[406958436,1772353845347,-391.70323882,0.00017899,2]
[406958437,1772353845356,-300.0,0.00017899,2]
[406958438,1772353845366,-500.0,0.00017899,2]
[406958439,1772353845375,-500.0,0.00017899,2]
[406958440,1772353845384,-300.0,0.00017899,2]
[406958441,1772353845394,-8240.0,0.000179,2]
[406958442,1772353845402,-322.84266732,0.000179,2]
[406958443,1772353845417,-12102.88705539,0.000179,3]
[406958444,1772353845437,-10000.0,0.000179,2]
[406958445,1772353845454,-5000.0,0.000179,2]
[406958446,1772353845466,-25000.0,0.000179,3]
[406958447,1772353845477,-2390.33585773,0.000179,2]
[406958448,1772353845490,-333.1526586,0.000179,2]
[406958449,1772353845501,-168.0,0.00017902,2]
[406958450,1772353845511,-500.0,0.00017918,2]
[406958451,1772353845521,-417.0,0.00017931,2]
[406958452,1772353845532,-151.0,0.0001797,2]
[406958453,1772353845543,-400.0,0.0001797,2]
[406958454,1772353845555,-1000.0,0.0001797,2]
[406958455,1772353845565,-400.0,0.0001797,2]
[406958456,1772353845576,-1000.0,0.0001797,2]
[406958457,1772353845586,-400.0,0.0001797,2]
[406958458,1772353845595,-1000.0,0.0001797,2]
[406958459,1772353845606,-400.0,0.0001797,2]
[406958460,1772353845615,-1000.0,0.0001797,2]
[406958461,1772353845625,-401.96578725,0.0001797,2]
[406958462,1772353845636,-1000.0,0.0001797,2]
[406958463,1772353845646,-1000.0,0.0001797,2]